bitfinex/quotes_BTCUSD_20251113
["timestamp","ask_amount","ask_price","bid_price","bid_amount"]
[1763006285049,2.00004674,102460.0,102450.0,0.34546717]
[1763006285203,4.674e-05,102460.0,102450.0,0.34546717]
[1763006285677,4.674e-05,102460.0,102450.0,0.37479544]
[1763006286948,4.674e-05,102460.0,102450.0,0.37579544]
[1763006288780,4.674e-05,102460.0,102450.0,0.67832329]
[1763006290358,4.674e-05,102460.0,102450.0,0.37579544]
[1763006291770,4.674e-05,102460.0,102450.0,0.72174203]
[1763006292182,4.674e-05,102460.0,102450.0,1.04474203]
[1763006292391,4.674e-05,102460.0,102450.0,1.34726988]
[1763006295494,4.674e-05,102460.0,102450.0,1.35726987]
[1763006295703,4.674e-05,102460.0,102450.0,1.04474203]
[1763006297050,4.674e-05,102460.0,102450.0,0.74221418]
[1763006297257,4.674e-05,102460.0,102450.0,1.04474203]
[1763006297490,4.674e-05,102460.0,102450.0,0.74221418]
[1763006297695,4.674e-05,102460.0,102450.0,1.04474203]
[1763006298209,4.674e-05,102460.0,102450.0,0.74121418]
[1763006298421,4.674e-05,102460.0,102450.0,0.74321418]
[1763006298624,4.674e-05,102460.0,102450.0,0.69979544]
[1763006298980,4.674e-05,102460.0,102450.0,0.37679544]
[1763006299363,4.674e-05,102460.0,102450.0,0.37479544]
[1763006299791,4.674e-05,102460.0,102450.0,0.37879544]
[1763006300468,0.00104674,102460.0,102450.0,0.37879544]
[1763006301123,0.00104674,102460.0,102450.0,0.37479544]
[1763006301304,0.00104674,102460.0,102450.0,0.37779544]
[1763006303355,4.674e-05,102460.0,102450.0,0.37779544]
[1763006303854,0.44769459,102460.0,102450.0,0.22754544]
[1763006304090,0.14516674,102460.0,102450.0,0.22754544]
[1763006304336,0.44769459,102460.0,102450.0,0.22754544]
[1763006305025,0.03549674,102460.0,102450.0,0.30782544]
[1763006305233,4.674e-05,102460.0,102450.0,0.37779544]
[1763006305460,4.674e-05,102460.0,102450.0,0.68032329]
[1763006305666,4.674e-05,102460.0,102450.0,0.72374203]
[1763006307272,4.674e-05,102460.0,102450.0,1.04674203]
[1763006307683,0.19789958,102490.0,102480.0,0.19516003]
[1763006307836,2.25382059,102490.0,102480.0,0.19516003]
[1763006308940,2.57682059,102490.0,102480.0,0.19516003]
[1763006310926,2.70210931,102490.0,102480.0,0.19516003]
[1763006311205,2.70210931,102490.0,102470.0,0.22450173]
[1763006311206,2.0,102480.0,102470.0,0.22450173]
[1763006311409,2.62263345,102480.0,102470.0,0.19517907]
[1763006311616,2.66024345,102480.0,102470.0,0.19517907]
[1763006312690,2.35805881,102480.0,102470.0,0.19517907]
[1763006313104,2.69785345,102480.0,102470.0,0.19517907]
[1763006313384,2.69785345,102480.0,102470.0,0.19617907]
[1763006314407,2.71890979,102480.0,102470.0,0.19617907]
[1763006314848,3.24620909,102480.0,102470.0,0.001]
[1763006315063,3.74839373,102480.0,102470.0,0.001]
[1763006315279,3.77629604,102480.0,102470.0,0.001]
[1763006315489,3.4741114,102480.0,102470.0,0.001]
[1763006315894,3.4741114,102480.0,102470.0,0.19617907]
[1763006316121,3.44620909,102480.0,102470.0,0.001]
[1763006316349,2.323,102470.0,102460.0,0.2049257]
[1763006316558,2.79016485,102470.0,102460.0,0.2049257]
[1763006316765,2.82777485,102470.0,102460.0,0.2049257]
[1763006316975,3.12995949,102470.0,102450.0,0.19521717]
[1763006317199,3.02139928,102460.0,102450.0,0.19521717]
[1763006317446,3.06072018,102460.0,102450.0,0.19521717]
[1763006319986,0.323,102430.0,102420.0,0.19551574]
[1763006320203,2.68331554,102430.0,102420.0,0.19552086]
[1763006320416,2.4563509,102430.0,102420.0,0.19552086]
[1763006320623,2.75853554,102430.0,102420.0,0.19552086]
[1763006321097,2.80012073,102430.0,102420.0,0.19552086]
[1763006321304,2.3811309,102430.0,102420.0,0.3369476]
[1763006321487,2.34181,102430.0,102420.0,0.3369476]
[1763006321722,2.37942,102430.0,102420.0,0.2267076]
[1763006321934,2.37942,102430.0,102420.0,0.2277076]
[1763006323166,2.37942,102430.0,102420.0,0.1965676]
[1763006325291,2.37942,102430.0,102420.0,0.2277076]
[1763006328010,2.51881,102440.0,102430.0,0.19525529]
[1763006328227,2.01881,102440.0,102430.0,0.33663529]
[1763006328429,2.34181,102440.0,102430.0,0.33663529]
[1763006328646,2.34181,102440.0,102430.0,0.26931529]
[1763006329078,2.37942,102440.0,102430.0,0.22639529]
[1763006330785,2.34181,102440.0,102430.0,0.33663529]
[1763006334291,2.34181,102440.0,102430.0,0.26931529]
[1763006334494,2.41703,102440.0,102430.0,0.19525529]
[1763006334698,2.37942,102440.0,102430.0,0.19525529]
[1763006335469,2.41703,102440.0,102430.0,0.19525529]
[1763006335713,2.37942,102440.0,102430.0,0.19525529]
[1763006336540,2.4145,102440.0,102430.0,0.19525529]
[1763006337973,2.75826983,102440.0,102430.0,0.19525529]
[1763006338157,0.323,102430.0,102420.0,0.1955676]
[1763006338559,2.82497953,102430.0,102420.0,0.1955676]
[1763006339190,2.4812097,102430.0,102420.0,0.1955676]
[1763006339388,2.4812097,102430.0,102420.0,0.1965676]
[1763006339604,2.82497953,102430.0,102420.0,0.1965676]
[1763006340464,2.85288184,102430.0,102420.0,0.1965676]
[1763006340676,2.82497953,102430.0,102420.0,0.1965676]
[1763006341107,3.06365356,102430.0,102420.0,0.00129324]
[1763006341324,2.323,102410.0,102400.0,0.1953125]
[1763006341547,2.66681661,102410.0,102400.0,0.1953125]
[1763006341756,2.35808,102400.0,102390.0,0.19533153]
[1763006341943,2.73692983,102400.0,102390.0,0.19533153]
[1763006343033,2.39316,102400.0,102390.0,0.19533153]
[1763006343236,2.73692983,102400.0,102390.0,0.19533153]
[1763006343370,2.39316,102400.0,102390.0,0.19533153]
[1763006344016,2.323,102400.0,102390.0,0.33149153]
[1763006346038,2.50691692,102400.0,102390.0,0.19533153]
[1763006346672,2.16314709,102400.0,102390.0,0.19533153]
[1763006347489,2.18139163,102400.0,102390.0,0.19533153]
[1763006348353,2.52516146,102400.0,102390.0,0.19533153]
[1763006348559,2.72047396,102400.0,102380.0,0.30273583]
[1763006348766,2.72047396,102400.0,102390.0,0.19533157]
[1763006348767,2.65259396,102400.0,102390.0,0.19533157]
[1763006349204,2.67361265,102400.0,102390.0,0.19533157]
[1763006349426,2.74148798,102400.0,102390.0,0.19533157]
[1763006349627,2.09526709,102390.0,102380.0,0.30273583]
[1763006349838,2.18139163,102390.0,102380.0,0.30273583]
[1763006351325,2.19209348,102390.0,102380.0,0.30273583]
[1763006351748,2.55226331,102390.0,102380.0,0.30373583]
[1763006352598,2.74759488,102390.0,102380.0,0.001]
[1763006352812,2.55226331,102390.0,102380.0,0.19635065]
[1763006353022,2.55226331,102390.0,102380.0,0.19733706]
[1763006353231,2.74759488,102390.0,102380.0,0.00198641]
[1763006353440,2.76858899,102390.0,102380.0,0.00198641]
[1763006353650,2.61128921,102390.0,102380.0,0.00098641]
[1763006353832,2.96417125,102390.0,102380.0,0.00098641]
[1763006354479,2.8657509,102390.0,102380.0,0.00098641]
[1763006355074,2.88566672,102390.0,102380.0,0.00098641]
[1763006355203,2.87655451,102390.0,102380.0,0.00098641]
[1763006355397,2.85663869,102390.0,102380.0,0.00098641]
[1763006355969,2.87655451,102390.0,102380.0,0.00098641]
[1763006356391,2.88565738,102390.0,102380.0,0.00098641]
[1763006356599,2.86574156,102390.0,102380.0,0.00098641]
[1763006356805,3.28166947,102390.0,102380.0,0.00098641]
[1763006357431,3.29166946,102390.0,102380.0,0.00098641]
[1763006357843,3.29266946,102390.0,102380.0,0.00098641]
[1763006358050,3.26476715,102390.0,102380.0,0.00098641]
[1763006358461,3.26476715,102390.0,102360.0,0.0004]
[1763006358462,2.49063682,102370.0,102360.0,0.0004]
[1763006358666,3.27844308,102370.0,102360.0,0.0004]
[1763006358867,3.31238308,102370.0,102360.0,0.0004]
[1763006359350,3.31233564,102370.0,102360.0,0.0004]
[1763006359759,3.31238239,102370.0,102360.0,0.0004]
[1763006359973,3.21396204,102370.0,102360.0,0.0004]
[1763006360197,3.15062748,102370.0,102360.0,0.0004]
[1763006360821,3.225592,102370.0,102360.0,0.0004]
[1763006361722,3.225592,102370.0,102360.0,0.19578882]
[1763006361929,3.225592,102370.0,102360.0,0.0004]
[1763006362137,3.30591332,102370.0,102360.0,0.0004]
[1763006362556,3.2859975,102370.0,102360.0,0.0004]
[1763006362790,3.31389981,102370.0,102360.0,0.0004]
[1763006363007,3.225592,102370.0,102360.0,0.19578882]
[1763006363642,3.243132,102370.0,102360.0,0.19578882]
[1763006363843,2.89936217,102370.0,102360.0,0.19578882]
[1763006364077,3.243132,102370.0,102360.0,0.19628221]
[1763006364289,3.26304782,102370.0,102360.0,0.00089339]
[1763006364500,3.243132,102370.0,102360.0,0.00089339]
[1763006364715,3.34155235,102370.0,102360.0,0.00089339]
[1763006365125,3.23402913,102370.0,102360.0,0.19628221]
[1763006365354,3.24312137,102370.0,102360.0,0.19628221]
[1763006365772,3.24312137,102370.0,102360.0,0.00089339]
[1763006366393,3.29722781,102370.0,102360.0,0.00089339]
[1763006366660,3.2693255,102370.0,102360.0,0.19628221]
[1763006366867,3.29722781,102370.0,102360.0,0.19628221]
[1763006367086,0.28343852,102360.0,102350.0,0.0004]
[1763006367292,2.51337007,102360.0,102350.0,0.0004]
[1763006367493,2.51337007,102360.0,102350.0,0.19605466]
[1763006367699,2.31798125,102360.0,102350.0,0.19605466]
[1763006368568,2.51337007,102360.0,102350.0,0.19605466]
[1763006368774,2.31798125,102360.0,102350.0,0.19605466]
[1763006369427,2.31798125,102360.0,102350.0,0.00064675]
[1763006369428,2.51340471,102360.0,102350.0,0.00064675]
[1763006370491,3.30294945,102360.0,102350.0,0.00064675]
[1763006370697,3.26971323,102360.0,102350.0,0.00064675]
[1763006370905,3.24979741,102360.0,102350.0,0.00064675]
[1763006371767,3.24979741,102360.0,102350.0,0.19605466]
[1763006371768,2.57917032,102360.0,102350.0,0.19605466]
[1763006372195,2.23540049,102360.0,102350.0,0.19605466]
[1763006372407,2.57917032,102360.0,102350.0,0.19605466]
[1763006372616,2.55296619,102360.0,102350.0,0.19605466]
[1763006373051,2.64196883,102360.0,102350.0,0.19605466]
[1763006373883,2.83735765,102360.0,102350.0,0.00064675]
[1763006374085,2.86356178,102360.0,102350.0,0.00064675]
[1763006374552,2.8834776,102360.0,102350.0,0.00064675]
[1763006376821,2.86356178,102360.0,102350.0,0.00064675]
[1763006377252,2.89860136,102360.0,102350.0,0.00064675]
[1763006377470,2.66817296,102360.0,102350.0,0.19605466]
[1763006377675,2.86356178,102360.0,102350.0,0.19605466]
[1763006378317,2.86356178,102360.0,102350.0,0.00064675]
[1763006378520,2.89146409,102360.0,102350.0,0.00064675]
[1763006379350,2.92650367,102360.0,102350.0,0.00064675]
[1763006379780,2.89860136,102360.0,102350.0,0.00064675]
[1763006381029,3.7174111,102360.0,102350.0,0.00064675]
[1763006381241,2.92434136,102360.0,102350.0,0.00064675]
[1763006381455,3.35711383,102360.0,102350.0,0.00064675]
[1763006381661,3.2236539,102360.0,102350.0,0.00064675]
[1763006382370,3.2246539,102360.0,102350.0,0.00064675]
[1763006382593,3.2256539,102360.0,102350.0,0.00064675]
[1763006383282,2.74946269,102360.0,102350.0,0.00064675]
[1763006383523,3.13441703,102360.0,102350.0,0.00064675]
[1763006383740,3.16231934,102360.0,102350.0,0.00064675]
[1763006384667,3.13441703,102360.0,102350.0,0.00064675]
[1763006385571,3.23283738,102360.0,102350.0,0.00064675]
[1763006385809,3.24361256,102360.0,102350.0,0.00064675]
[1763006386025,3.27151487,102360.0,102350.0,0.00064675]
[1763006386485,3.27151487,102360.0,102340.0,0.0004]
[1763006386486,2.490675,102350.0,102340.0,0.0004]
[1763006386700,3.56782966,102350.0,102340.0,0.0004]
[1763006386918,3.51508366,102350.0,102340.0,0.0004]
[1763006388016,3.58481901,102350.0,102340.0,0.0004]
[1763006388227,3.594819,102350.0,102340.0,0.0004]
[1763006388691,0.73836192,102330.0,102320.0,0.0004]
[1763006388908,3.19812901,102330.0,102320.0,0.0004]
[1763006389124,3.03058522,102330.0,102320.0,0.0004]
[1763006389341,2.98276709,102330.0,102320.0,0.0004]
[1763006389991,2.98276709,102330.0,102320.0,0.00086866]
[1763006390413,3.21333973,102330.0,102320.0,0.00086866]
[1763006390636,3.01789363,102330.0,102320.0,0.00086866]
[1763006391147,3.17821319,102330.0,102320.0,0.00086866]
[1763006391361,3.19812901,102330.0,102320.0,0.00086866]
[1763006391801,3.26835248,102330.0,102320.0,0.00086866]
[1763006392009,3.26835248,102330.0,102310.0,0.0004]
[1763006392010,2.7714583,102320.0,102310.0,0.0004]
[1763006392246,2.92975906,102320.0,102310.0,0.00049201]
[1763006392469,2.87708492,102320.0,102310.0,0.19597632]
[1763006392684,2.87708492,102320.0,102310.0,0.00049201]
[1763006392893,2.87708492,102320.0,102310.0,0.19597632]
[1763006393116,2.87708492,102320.0,102310.0,0.00049201]
[1763006393324,2.74074858,102320.0,102310.0,0.00049201]
[1763006393531,2.7606644,102320.0,102310.0,0.00049201]
[1763006393979,2.56525673,102320.0,102310.0,0.00049201]
[1763006394612,2.76072193,102320.0,102310.0,0.00049201]
[1763006395526,2.88825673,102320.0,102310.0,0.00049201]
[1763006397243,2.96172619,102320.0,102310.0,0.00049201]
[1763006397446,3.00514493,102320.0,102310.0,0.00049201]
[1763006397663,3.00514493,102320.0,102310.0,0.00147943]
[1763006397906,3.00514493,102320.0,102280.0,0.0024]
[1763006397907,3.24294646,102320.0,102280.0,0.0024]
[1763006398127,3.24294646,102320.0,102270.0,0.00529655]
[1763006398128,1.77226709,102280.0,102270.0,0.00529655]
[1763006398345,2.27522464,102280.0,102270.0,0.20085732]
[1763006398557,2.30613464,102280.0,102270.0,0.20085732]
[1763006398768,1.87336217,102280.0,102270.0,0.00529655]
[1763006398989,2.30613464,102280.0,102270.0,0.20085732]
[1763006399203,1.87336217,102280.0,102270.0,0.20085732]
[1763006399410,1.87350235,102280.0,102270.0,0.20085732]
[1763006399833,1.87350235,102280.0,102270.0,0.20285732]
[1763006400291,1.87350235,102280.0,102270.0,0.00729655]
[1763006400498,1.97169801,102280.0,102270.0,0.20285732]
[1763006400702,1.94078801,102280.0,102270.0,0.27561732]
[1763006400913,1.80077667,102280.0,102270.0,0.27561732]
[1763006401120,1.80077667,102280.0,102270.0,0.34007732]
[1763006401324,1.80077667,102280.0,102270.0,0.27561732]
[1763006401540,1.79063071,102280.0,102270.0,0.27561732]
[1763006401755,1.79063071,102280.0,102270.0,0.33807732]
[1763006401969,2.11363071,102280.0,102270.0,0.77084979]
[1763006402177,0.00014018,102280.0,102270.0,0.77084979]
[1763006402836,0.00014018,102280.0,102270.0,0.81426853]
[1763006403484,0.00014018,102280.0,102270.0,0.38149606]
[1763006403685,0.00014018,102280.0,102270.0,0.33907732]
[1763006403888,0.00014018,102280.0,102270.0,0.86088749]
[1763006404567,1e-08,102280.0,102270.0,0.90430623]
[1763006405466,1e-08,102280.0,102270.0,0.90330623]
[1763006405870,1e-08,102280.0,102270.0,0.90630623]
[1763006406555,1e-08,102280.0,102270.0,0.90830623]
[1763006408282,2.00000001,102280.0,102270.0,0.90830623]
[1763006408702,1e-08,102280.0,102270.0,0.90830623]
[1763006409127,1e-08,102280.0,102270.0,0.38748406]
[1763006409334,1e-08,102280.0,102270.0,0.77683779]
[1763006409540,2.00000001,102280.0,102270.0,0.77683779]
[1763006409770,1.99980392,102290.0,102280.0,0.29543165]
[1763006409992,0.35949425,102310.0,102300.0,0.19550342]
[1763006409993,2.4265097,102310.0,102300.0,0.19550342]
[1763006410203,2.49545325,102310.0,102300.0,0.19550342]
[1763006410456,2.52512325,102310.0,102300.0,0.19550342]
[1763006410659,2.49545325,102310.0,102300.0,0.19550342]
[1763006411069,2.52512325,102310.0,102300.0,0.19550342]
[1763006411285,2.49545325,102310.0,102300.0,0.19550342]
[1763006411719,2.52512325,102310.0,102300.0,0.19550342]
[1763006413002,2.72512325,102310.0,102300.0,0.19550342]
[1763006413216,2.52512325,102310.0,102300.0,0.19550342]
[1763006414054,2.52504219,102310.0,102300.0,0.19550342]
[1763006414277,0.323,102300.0,102290.0,0.19552253]
[1763006414481,2.37083921,102300.0,102290.0,0.19552253]
[1763006414688,2.40042921,102300.0,102290.0,0.19552253]
[1763006415130,2.0880497,102290.0,102280.0,0.00046782]
[1763006415324,2.523,102280.0,102270.0,0.20085732]
[1763006415595,2.36233275,102280.0,102270.0,0.46844902]
[1763006415802,0.9110497,102290.0,102280.0,0.19554165]
[1763006416023,2.45892337,102290.0,102280.0,0.19554165]
[1763006416235,2.38218,102280.0,102270.0,0.20085732]
[1763006416498,2.4215227,102280.0,102270.0,0.20085732]
[1763006416963,2.6215227,102280.0,102270.0,0.20085732]
[1763006417627,2.6215227,102280.0,102270.0,0.20285732]
[1763006418261,2.6215227,102280.0,102270.0,0.20485732]
[1763006418677,2.62097621,102280.0,102270.0,0.20485732]
[1763006419524,2.62097621,102280.0,102270.0,0.00929655]
[1763006419732,2.62097621,102280.0,102270.0,0.20485732]
[1763006419935,2.65149241,102280.0,102270.0,0.20485732]
[1763006420144,2.62097621,102280.0,102270.0,0.20485732]
[1763006421228,2.39138621,102280.0,102270.0,0.20485732]
[1763006421641,2.39138621,102280.0,102270.0,0.20584532]
[1763006421855,2.39083956,102280.0,102270.0,0.20584532]
[1763006422083,2.39083956,102280.0,102270.0,0.76888779]
[1763006422084,2.36081357,102280.0,102270.0,0.76888779]
[1763006422296,0.5880497,102290.0,102280.0,0.19554165]
[1763006422500,2.62738508,102290.0,102280.0,0.19554165]
[1763006422722,2.12738508,102290.0,102280.0,0.19554165]
[1763006423594,2.12738508,102290.0,102280.0,0.19654165]
[1763006424014,2.12738508,102290.0,102280.0,0.23797165]
[1763006424229,2.45038508,102290.0,102280.0,0.67174412]
[1763006424440,2.45038508,102290.0,102280.0,0.73020412]
[1763006424863,2.45038508,102290.0,102280.0,0.67174412]
[1763006425085,2.45038508,102290.0,102280.0,0.73020412]
[1763006425320,2.42919298,102290.0,102280.0,0.23897165]
[1763006425534,2.45025319,102290.0,102280.0,0.67174412]
[1763006426149,2.45019952,102290.0,102280.0,0.67174412]
[1763006426367,2.45014585,102290.0,102280.0,0.67174412]
[1763006426594,2.36233932,102290.0,102280.0,0.29743165]
[1763006426820,2.34128092,102290.0,102280.0,0.73020412]
[1763006427495,2.34128092,102290.0,102280.0,0.23897165]
[1763006427711,2.34128092,102290.0,102280.0,0.23971258]
[1763006428616,2.36677092,102290.0,102280.0,0.19828258]
[1763006429266,2.36649815,102290.0,102280.0,0.19828258]
[1763006430165,2.36628126,102290.0,102280.0,0.19828258]
[1763006430377,2.34079126,102290.0,102280.0,0.23975258]
[1763006430595,0.34128092,102290.0,102280.0,0.72959505]
[1763006430821,2.51334928,102310.0,102300.0,0.19550342]
[1763006431065,2.52686737,102310.0,102300.0,0.19550342]
[1763006431278,2.55235737,102310.0,102300.0,0.19550342]
[1763006431489,2.5520846,102310.0,102300.0,0.19550342]
[1763006431707,2.55197068,102310.0,102300.0,0.19550342]
[1763006432154,2.51720113,102310.0,102300.0,0.19550342]
[1763006432418,2.46639658,102310.0,102300.0,0.66974589]
[1763006432629,2.46639658,102310.0,102300.0,0.23697342]
[1763006433056,2.49136658,102310.0,102300.0,0.19550342]
[1763006433707,2.51633658,102310.0,102300.0,0.19550342]
[1763006434064,2.49527113,102310.0,102300.0,0.19550342]
[1763006434266,2.51633528,102310.0,102300.0,0.19550342]
[1763006434644,2.49136528,102310.0,102300.0,0.19550342]
[1763006435263,2.46639528,102310.0,102300.0,0.23697342]
[1763006435480,2.49136528,102310.0,102300.0,0.19550342]
[1763006435703,2.49136528,102310.0,102300.0,0.53999744]
[1763006436527,2.49136528,102310.0,102300.0,0.54024437]
[1763006436741,2.49109253,102310.0,102300.0,0.19575035]
[1763006436955,2.4909841,102310.0,102300.0,0.19575035]
[1763006437378,2.45153886,102310.0,102300.0,0.29429035]
[1763006437794,2.45153886,102310.0,102300.0,0.63878437]
[1763006438614,2.04048916,102310.0,102300.0,0.63878437]
[1763006438850,2.00113757,102310.0,102300.0,0.63878437]
[1763006439691,2.00107296,102310.0,102300.0,0.63878437]
[1763006440115,2.00107296,102310.0,102300.0,0.63978437]
[1763006440531,2.00007296,102310.0,102300.0,0.63978437]
[1763006440949,2.00007296,102310.0,102300.0,0.64078437]
[1763006442005,1.99980027,102310.0,102300.0,0.64078437]
[1763006442412,2.03477027,102310.0,102300.0,0.19775035]
[1763006442617,2.03477027,102310.0,102300.0,0.54224437]
[1763006444179,1.99980027,102310.0,102300.0,0.58371437]
[1763006444386,1.99980027,102310.0,102300.0,0.68420311]
[1763006444568,2.6099744,102320.0,102310.0,0.19548431]
[1763006444773,2.11044332,102320.0,102310.0,0.66877833]
[1763006445610,2.00046892,102320.0,102310.0,0.66877833]
[1763006448117,0.00046892,102320.0,102310.0,0.71219707]
[1763006448523,0.00014147,102320.0,102310.0,0.58339707]
[1763006448727,2.02473147,102320.0,102310.0,0.53997833]
[1763006449346,2.02473147,102320.0,102310.0,0.57023833]
[1763006450046,2.02473147,102320.0,102310.0,0.22574431]
[1763006450315,2.02473147,102320.0,102310.0,0.57023833]
[1763006451058,2.02445878,102320.0,102310.0,0.22574431]
[1763006452161,2.0,102320.0,102310.0,0.66877833]
[1763006452351,2.04892,102320.0,102310.0,0.53997833]
[1763006452563,2.04892,102320.0,102310.0,0.19548431]
[1763006452564,2.02446,102320.0,102310.0,0.19548431]
[1763006453190,2.37192,102320.0,102310.0,0.19548431]
[1763006453394,2.39297948,102320.0,102310.0,0.19548431]
[1763006454018,2.59297948,102320.0,102310.0,0.19548431]
[1763006454439,2.61071693,102320.0,102310.0,0.19548431]
[1763006454651,1.99945356,102310.0,102300.0,0.19575035]
[1763006454863,2.03415356,102310.0,102300.0,0.19575035]
[1763006455120,2.03415356,102310.0,102300.0,0.23722035]
[1763006455338,2.05861356,102310.0,102300.0,0.19575035]
[1763006455767,2.05861356,102310.0,102300.0,0.19675035]
[1763006455983,2.05851582,102310.0,102300.0,0.19675035]
[1763006456193,2.16851582,102310.0,102300.0,0.19675035]
[1763006456649,2.16824315,102310.0,102300.0,0.19775035]
[1763006457293,2.14378315,102310.0,102300.0,0.19775035]
[1763006458991,2.16320315,102310.0,102300.0,0.19775035]
[1763006460210,2.83029416,102310.0,102300.0,0.19775035]
[1763006460429,2.89601525,102310.0,102300.0,0.00224693]
[1763006460638,2.90516962,102310.0,102300.0,0.19775035]
[1763006460843,2.90516962,102310.0,102300.0,0.00224693]
[1763006461063,2.90516962,102310.0,102300.0,0.00124693]
[1763006462013,2.94028571,102310.0,102300.0,0.00124693]
[1763006462226,2.32168014,102280.0,102270.0,0.20085522]
[1763006462434,2.36218406,102280.0,102270.0,0.20085522]
[1763006462636,2.38160406,102280.0,102270.0,0.20085522]
[1763006463365,0.48927288,102310.0,102280.0,0.19554165]
[1763006463509,2.0,102300.0,102290.0,0.19552253]
[1763006463716,2.02107607,102300.0,102290.0,0.19552253]
[1763006463945,2.36254607,102300.0,102290.0,0.19552253]
[1763006464522,2.38101607,102300.0,102290.0,0.19552253]
[1763006464729,2.3808529,102300.0,102290.0,0.19552253]
[1763006464939,2.38058021,102300.0,102290.0,0.19552253]
[1763006466670,2.11828121,102300.0,102290.0,0.19552253]
[1763006466878,2.36254607,102300.0,102290.0,0.19552253]
[1763006467086,2.38101607,102300.0,102290.0,0.19552253]
[1763006467936,2.38101607,102300.0,102290.0,0.17805253]
[1763006468346,2.35994,102300.0,102290.0,0.17805253]
[1763006469360,2.35994,102300.0,102280.0,0.20531873]
[1763006469361,2.70443402,102300.0,102280.0,0.20531873]
[1763006469574,2.99204671,102290.0,102280.0,0.20531873]
[1763006469787,2.99204671,102290.0,102270.0,0.21110217]
[1763006469788,2.0,102280.0,102270.0,0.21110217]
[1763006470010,2.03694,102280.0,102270.0,0.0155435]
[1763006470215,2.03694,102280.0,102270.0,0.21110427]
[1763006471111,2.38143402,102280.0,102270.0,0.00576547]
[1763006471316,2.38143402,102280.0,102270.0,0.20332624]
[1763006471526,2.70443402,102280.0,102270.0,0.20332624]
[1763006471756,2.70443402,102280.0,102270.0,0.00776547]
[1763006472175,2.70443402,102280.0,102270.0,0.20332624]
[1763006472394,2.70443402,102280.0,102270.0,0.00776547]
[1763006472813,2.70443402,102280.0,102270.0,0.00576547]
[1763006473241,2.70438036,102280.0,102270.0,0.00576547]
[1763006473450,2.74367249,102280.0,102270.0,0.00576547]
[1763006473678,2.74367249,102280.0,102270.0,0.20132624]
[1763006473880,2.38092138,102280.0,102270.0,0.20132624]
[1763006474085,2.35988634,102280.0,102270.0,0.20132624]
[1763006474301,2.35988634,102280.0,102270.0,0.00576547]
[1763006474507,2.74366098,102280.0,102270.0,0.00576547]
[1763006474719,2.38091521,102280.0,102270.0,0.00576547]
[1763006475145,2.38075202,102280.0,102270.0,0.00576547]
[1763006475353,2.39900433,102280.0,102270.0,0.20132624]
[1763006475576,2.74349835,102280.0,102270.0,0.20132624]
[1763006475794,2.74349835,102280.0,102270.0,0.00576547]
[1763006476009,2.61083285,102270.0,102260.0,0.20583766]
[1763006476217,3.00049687,102270.0,102260.0,0.00061757]
[1763006476635,3.039768,102270.0,102260.0,0.00061757]
[1763006476886,3.06695499,102270.0,102260.0,0.00061757]
[1763006477085,3.08687081,102270.0,102260.0,0.00061757]
[1763006477295,3.08687081,102270.0,102260.0,0.19719746]
[1763006477510,0.323,102260.0,102250.0,0.19599672]
[1763006477725,2.70421717,102260.0,102250.0,0.00054018]
[1763006477931,2.75242341,102260.0,102250.0,0.1961392]
[1763006478170,2.72523642,102260.0,102250.0,0.1961392]
[1763006478379,2.70421717,102260.0,102250.0,0.1961392]
[1763006478586,2.72523007,102260.0,102250.0,0.1961392]
[1763006478794,2.70421717,102260.0,102250.0,0.1961392]
[1763006478998,2.73140416,102260.0,102250.0,0.1961392]
[1763006479213,2.73140416,102260.0,102250.0,0.1973745]
[1763006479436,2.70339664,102260.0,102250.0,0.1973745]
[1763006479642,2.70339664,102260.0,102250.0,0.00177548]
[1763006479849,2.74264232,102260.0,102250.0,0.00177548]
[1763006480069,2.74264232,102260.0,102250.0,0.1973745]
[1763006480697,2.76255814,102260.0,102250.0,0.1973745]
[1763006481106,2.76255698,102260.0,102250.0,0.00177548]
[1763006481926,2.41806296,102260.0,102250.0,0.00177548]
[1763006482139,2.76244853,102260.0,102250.0,0.00177548]
[1763006482351,2.4451415,102260.0,102250.0,0.00177548]
[1763006482558,2.76244853,102260.0,102250.0,0.00177548]
[1763006482763,2.76244853,102260.0,102250.0,0.1973745]
[1763006482981,0.2880497,102250.0,102240.0,0.19601673]
[1763006483192,2.68764713,102250.0,102240.0,0.19601673]
[1763006483408,2.68764713,102250.0,102240.0,0.19601815]
[1763006484034,3.01064713,102250.0,102240.0,0.19701815]
[1763006484493,2.44768311,102250.0,102240.0,0.19701815]
[1763006484696,2.44768311,102250.0,102240.0,0.19801815]
[1763006484911,2.44791337,102250.0,102240.0,0.19801815]
[1763006485348,2.46614958,102250.0,102240.0,0.19801815]
[1763006485565,2.64791337,102250.0,102240.0,0.19801815]
[1763006485813,2.6661496,102250.0,102240.0,0.19801815]
[1763006486449,2.66587675,102250.0,102240.0,0.19801815]
[1763006486867,3.03028659,102250.0,102240.0,0.0024]
[1763006487101,3.03138152,102250.0,102240.0,0.0024]
[1763006487307,3.03138152,102250.0,102240.0,0.19801815]
[1763006488412,3.03138152,102250.0,102240.0,0.0024]
[1763006488644,3.03138152,102250.0,102240.0,0.00264714]
[1763006488880,3.37230187,102250.0,102240.0,0.00264714]
[1763006489097,3.35856841,102250.0,102240.0,0.00264714]
[1763006489538,3.35856841,102250.0,102240.0,0.00164714]
[1763006490054,3.33554053,102250.0,102240.0,0.00164714]
[1763006490271,3.3419875,102250.0,102240.0,0.00064714]
[1763006490473,3.36190332,102250.0,102240.0,0.00064714]
[1763006490685,3.36290332,102250.0,102240.0,0.00064714]
[1763006490895,3.36290332,102250.0,102230.0,0.0004]
[1763006490896,0.323,102240.0,102230.0,0.0004]
[1763006491115,0.4,102230.0,102220.0,0.0004]
[1763006491336,3.25063385,102230.0,102220.0,0.0004]
[1763006491563,3.13665206,102230.0,102220.0,0.0004]
[1763006491781,3.16301485,102230.0,102220.0,0.0004]
[1763006492470,3.16501485,102230.0,102220.0,0.0004]
[1763006492695,3.2634352,102230.0,102220.0,0.0004]
[1763006492946,3.33198001,102230.0,102220.0,0.0004]
[1763006493160,3.53198001,102230.0,102220.0,0.0004]
[1763006493370,3.53198001,102230.0,102200.0,0.0004]
[1763006493371,2.85374154,102210.0,102200.0,0.0004]
[1763006493577,3.00246822,102210.0,102200.0,0.0004]
[1763006493822,3.00246822,102210.0,102160.0,0.0004]
[1763006493823,1.99978315,102180.0,102160.0,0.0004]
[1763006494046,2.97785572,102170.0,102160.0,0.0004]
[1763006494267,2.6040883,102170.0,102160.0,0.19617133]
[1763006494726,3.07559366,102170.0,102160.0,0.19617133]
[1763006494944,3.09217816,102170.0,102160.0,0.19617133]
[1763006495163,3.09217816,102170.0,102160.0,0.0004]
[1763006495378,3.09217816,102170.0,102130.0,0.20561935]
[1763006495379,2.32278315,102140.0,102130.0,0.20561935]
[1763006495605,2.36204938,102140.0,102130.0,0.20561935]
[1763006495826,2.01801938,102140.0,102130.0,0.27414935]
[1763006496049,1.51039098,102140.0,102130.0,0.76357192]
[1763006496295,0.0132,102160.0,102150.0,0.1957905]